bitfinex-derivatives/quotes_BNBF0:USTF0_20250331
["timestamp","ask_amount","ask_price","bid_price","bid_amount"]
[1743396796518,3.27070512,602.08,601.39,0.33256289]
[1743396796826,6.94110909,602.08,601.39,0.33256289]
[1743396797026,5.82230227,602.07,601.39,0.33256289]
[1743396797225,2.15185094,602.06,601.39,0.33256289]
[1743396797428,0.82763498,602.06,601.39,0.33256289]
[1743396797628,3.74219199,602.06,601.39,0.33256289]
[1743396797928,3.67040397,602.05,601.39,0.33256289]
[1743396798122,2.23932881,602.04,601.39,0.33256289]
[1743396798326,0.82763498,602.05,601.39,0.33256289]
[1743396798529,3.74219199,602.05,601.39,0.33256289]
[1743396798828,3.67040397,602.04,601.39,0.33256289]
[1743396799027,0.82763498,602.03,601.39,0.33256289]
[1743396799221,0.82748104,602.03,601.39,0.33256289]
[1743396799628,3.74203805,602.03,601.39,0.33256289]
[1743396799828,1.41169383,602.02,601.39,0.33256289]
[1743396800127,2.23917487,602.02,601.39,0.33256289]
[1743396800528,5.82090711,602.18,601.39,0.33256289]
[1743396800829,6.47748737,602.17,601.39,0.33256289]
[1743396801022,5.82077325,602.16,601.39,0.33256289]
[1743396801223,3.5627965,602.15,601.39,0.33256289]
[1743396801423,1.41169383,602.14,601.39,0.33256289]
[1743396801626,1.41169383,602.13,601.39,0.33256289]
[1743396801928,1.11880682,602.13,601.39,0.33256289]
[1743396802132,4.68160332,602.13,601.39,0.33256289]
[1743396802323,4.7884774,602.12,601.39,0.33256289]
[1743396802524,2.15110267,602.11,601.39,0.33256289]
[1743396802828,2.53050065,602.1,601.39,0.33256289]
[1743396803028,1.41169383,602.09,601.39,0.33256289]
[1743396803228,1.41169383,602.08,601.39,0.33256289]
[1743396803427,1.41116827,602.07,601.39,0.33256289]
[1743396803624,1.41116827,602.06,601.39,0.33256289]
[1743396804125,1.11880682,602.05,601.39,0.33256289]
[1743396804528,5.82008909,602.05,601.39,0.33256289]
[1743396804729,5.82008909,602.04,601.39,0.33256289]
[1743396804930,5.81905031,602.03,601.39,0.33256289]
[1743396805125,2.15105158,602.02,601.39,0.33256289]
[1743396805324,0.82732753,602.02,601.39,0.33256289]
[1743396805826,3.74188454,602.02,601.39,0.33256289]
[1743396806032,3.66799873,602.01,601.39,0.33256289]
[1743396806331,5.81905031,602.01,601.39,0.33256289]
[1743396806532,1.94613435,602.0,601.39,0.33256289]
[1743396806734,5.61413308,602.0,601.39,0.33256289]
[1743396806931,4.49423908,601.99,601.39,0.33256289]
[1743396807126,4.49423908,601.98,601.39,0.33256289]
[1743396807332,0.82693829,601.97,601.39,0.33256289]
[1743396807734,3.7414953,601.97,601.39,0.33256289]
[1743396807929,1.4105003,601.96,601.39,0.33256289]
[1743396808130,2.23743859,601.96,601.39,0.33256289]
[1743396808329,2.23744001,601.96,601.39,0.33256289]
[1743396808730,2.23734367,601.96,601.39,0.33256289]
[1743396809334,2.23734855,602.1,601.39,0.33256289]
[1743396809534,1.41044523,602.09,601.39,0.33256289]
[1743396809735,1.11880682,602.09,601.39,0.33256289]
[1743396809936,1.11880682,602.09,601.22,0.28928522]
[1743396810237,1.11880682,602.08,601.22,0.28928522]
[1743396811037,1.11880682,602.07,601.22,0.28928522]
[1743396811438,1.11880682,602.08,601.22,0.28928522]
[1743396811634,4.67920069,602.08,601.22,0.28928522]
[1743396811836,3.6671576,602.07,601.22,0.28928522]
[1743396812034,5.81710624,602.07,601.22,0.28928522]
[1743396812231,5.81710624,602.06,601.22,0.28928522]
[1743396812537,5.81710624,602.05,601.22,0.28928522]
[1743396812730,5.81710624,602.04,601.22,0.28928522]
[1743396812931,5.81710624,602.03,601.22,0.28928522]
[1743396813137,8.73166325,602.02,601.22,0.28928522]
[1743396813336,4.49406092,602.01,601.22,0.28928522]
[1743396813537,3.74146033,602.0,601.22,0.28928522]
[1743396813737,3.6671576,601.99,601.22,0.28928522]
[1743396813934,0.82690332,601.98,601.22,0.28928522]
[1743396814338,1.94571014,601.98,600.4,2.53489445]
[1743396814537,5.61286774,601.98,600.41,0.28843902]
[1743396814734,3.74146033,601.97,600.42,0.28843902]
[1743396814935,1.41044523,601.96,600.43,0.28843902]
[1743396815139,0.82698283,601.96,600.44,0.28843902]
[1743396815434,0.28938385,602.12,600.45,0.28843902]
[1743396815635,1.41044523,602.11,600.46,0.28843902]
[1743396815833,2.52925205,602.1,600.47,0.28843902]
[1743396816036,1.41044523,602.09,600.48,0.28843902]
[1743396816239,1.11880682,602.1,600.49,0.28843902]
[1743396816442,1.11880682,602.1,600.5,0.28843902]
[1743396816633,1.11880682,602.11,600.51,0.28843902]
[1743396816837,1.11880682,602.11,600.52,0.28828862]
[1743396817033,1.11880682,602.11,600.53,0.28828862]
[1743396817239,1.11880682,602.11,600.45,0.28828862]
[1743396817438,1.11880682,602.11,600.36,2.53489445]
[1743396817439,1.11880682,602.1,600.46,0.28828862]
[1743396817637,3.26896804,602.1,600.47,0.28828862]
[1743396817838,6.9363531,602.1,600.48,0.28828862]
[1743396818038,5.81754628,602.09,600.49,0.28828862]
[1743396818239,5.81754628,602.08,600.5,0.28828862]
[1743396818535,0.82710611,602.07,600.51,0.28826975]
[1743396818740,3.66738506,602.08,600.47,0.28826975]
[1743396818741,5.8178783,602.08,600.47,0.28826975]
[1743396818933,0.82710611,602.07,600.48,0.28826975]
[1743396819138,2.91455701,602.07,600.49,0.28826975]
[1743396819335,7.40904818,602.07,600.49,0.28826975]
[1743396819639,7.40904818,602.06,600.5,0.28826975]
[1743396819836,4.49449117,602.05,600.47,0.28826975]
[1743396820040,3.74166312,602.04,600.48,0.28826975]
[1743396820239,4.49465033,602.03,600.48,0.28826975]
[1743396820439,0.82726527,602.02,600.49,0.28826975]
[1743396820640,3.74182228,602.02,600.5,0.28826975]
[1743396820838,1.41044523,602.01,600.51,0.28826975]
[1743396821043,2.2377105,602.01,600.26,0.28826975]
[1743396821242,5.81941269,602.18,600.27,0.28826975]
[1743396821443,3.56145781,602.17,600.48,0.28938145]
[1743396821643,2.52925205,602.16,600.49,0.28826975]
[1743396821845,1.41044523,602.15,600.5,0.28826975]
[1743396822041,1.41044523,602.15,600.28,0.28826975]
[1743396822042,1.41044523,602.14,600.28,0.28826975]
[1743396822241,1.41124652,602.13,600.29,0.28826975]
[1743396822444,1.41124652,602.12,600.3,0.28826975]
[1743396822745,1.41124652,602.11,600.31,0.28826975]
[1743396822937,1.11880682,602.11,600.32,0.28826975]
[1743396823141,4.68106592,602.11,600.33,0.28826975]
[1743396823346,4.78804777,602.1,600.34,0.28826975]
[1743396823544,2.15101258,602.09,600.35,0.28826975]
[1743396823743,4.68106592,602.09,600.36,0.28826975]
[1743396823937,6.93906035,602.09,600.26,2.53489445]
[1743396824139,8.73494676,602.08,600.27,0.28817476]
[1743396824342,5.82038975,602.07,600.28,0.28817476]
[1743396824646,5.06556959,602.06,600.29,0.28817476]
[1743396824849,3.66937717,602.05,600.3,0.28817476]
[1743396825149,0.82726527,602.04,600.31,0.28817476]
[1743396825350,1.94607209,602.04,600.32,0.28817476]
[1743396825648,5.61544926,602.04,600.33,0.28817476]
[1743396825849,0.82726527,602.03,600.34,0.28817476]
[1743396826050,0.82726527,602.03,600.35,0.28817476]
[1743396826250,3.74182228,602.03,600.36,0.28817476]
[1743396826450,3.74182228,602.03,600.37,0.28817476]
[1743396826648,4.4969287,602.02,600.38,0.28817476]
[1743396826846,0.82726527,602.01,600.39,0.28817476]
[1743396827045,0.82726527,602.01,600.4,0.28817476]
[1743396827249,0.82726527,602.01,600.41,0.28817476]
[1743396827446,2.91455701,602.01,600.42,0.28817476]
[1743396827650,2.91455701,602.01,600.43,0.28817476]
[1743396827858,2.91455701,602.01,600.44,0.28817476]
[1743396828153,8.73542411,602.14,600.45,0.28817476]
[1743396828359,5.8208671,602.13,600.65,2.53489445]
[1743396828560,3.56261268,602.12,600.66,0.28817476]
[1743396828752,1.41140901,602.11,600.67,0.28817476]
[1743396828954,2.91455701,602.13,600.68,0.28817476]
[1743396829151,1.41146211,602.12,600.69,0.28817476]
[1743396829455,1.41146211,602.11,600.7,0.28817476]
[1743396829657,1.41146211,602.1,600.71,0.28817476]
[1743396829851,1.41146211,602.09,600.71,0.28817476]
[1743396830055,1.41146211,602.09,600.72,0.28817476]
[1743396830256,1.11880682,602.08,600.73,0.28817476]
[1743396830459,1.11880682,602.08,600.74,0.28817476]
[1743396830754,8.73582988,602.1,600.75,0.28817476]
[1743396830963,5.82127287,602.09,600.76,0.28817476]
[1743396831159,2.15147138,602.08,600.77,0.28806483]
[1743396831459,0.82748899,602.08,600.78,0.28806483]
[1743396831659,0.82748899,602.08,600.79,0.28806483]
[1743396831859,3.742046,602.08,600.8,0.28806483]
[1743396832059,3.66980149,602.07,600.81,0.28806483]
[1743396832260,5.82132612,602.07,600.82,0.28806483]
[1743396832460,0.82748899,602.06,600.83,0.28806483]
[1743396832759,2.91455701,602.06,600.72,2.53489445]
[1743396832955,7.41190074,602.06,600.73,0.28800028]
[1743396833153,4.49734373,602.05,600.74,0.28800028]
[1743396833359,2.62323918,602.04,600.75,0.28800028]
[1743396833559,3.742046,602.04,600.76,0.28800028]
[1743396833760,3.66985474,602.03,600.77,0.28800028]
[1743396833961,0.82748899,602.02,600.78,0.28800028]
[1743396834155,0.82748899,602.02,600.79,0.28800028]
[1743396834360,0.82748899,602.02,600.8,0.28800028]
[1743396834361,1.94629581,602.02,600.8,0.28800028]
[1743396834555,3.3577784,602.02,600.81,0.28800028]
[1743396834754,2.23897158,602.02,600.82,0.28800028]
[1743396834954,0.82748899,602.16,600.83,0.28800028]
[1743396835156,0.82748899,602.16,600.84,0.28800028]
[1743396835354,3.3577784,602.16,600.85,0.28800028]
[1743396835659,2.23913449,602.15,600.86,0.28800028]
[1743396835858,5.82204195,602.23,600.87,0.28800028]
[1743396836060,3.86877759,602.22,600.88,0.28800028]
[1743396836360,6.89010406,602.21,600.89,0.28800028]
[1743396836557,5.82204195,602.2,600.89,0.28800028]
[1743396836759,3.86877759,602.19,600.9,0.28800028]
[1743396836955,3.670147,602.18,600.9,0.28800028]
[1743396837158,1.71688264,602.17,600.91,0.28800028]
[1743396837359,1.71688264,602.16,600.92,0.28800028]
[1743396837556,1.41148259,602.15,600.94,0.33281192]
[1743396837858,1.41148259,602.14,600.95,0.28800028]
[1743396838057,1.41148259,602.13,600.97,0.33279531]
[1743396838260,1.41148259,602.12,600.98,0.28800028]
[1743396838559,1.41148259,602.11,601.0,0.3327787]
[1743396838760,1.41148259,602.1,601.01,0.28800028]
[1743396838958,1.41148259,602.09,601.03,0.33276209]
[1743396839154,1.11880682,602.08,601.04,0.28800028]
[1743396839357,1.11880682,602.08,601.06,0.33274548]
[1743396839559,2.53028941,602.08,601.07,0.28800028]
[1743396839755,1.11880682,602.08,601.09,0.33272887]
[1743396839956,1.11880682,602.07,601.1,0.28800028]
[1743396840157,1.11880682,602.07,601.12,0.33271227]
[1743396840158,4.68342859,602.07,601.12,0.33271227]
[1743396840362,3.67155605,602.06,601.13,0.28800028]
[1743396840663,1.11880682,602.05,601.13,0.28800028]
[1743396840859,6.9428477,602.05,601.13,0.28800028]
[1743396841065,5.82405742,602.04,601.13,0.28800028]
[1743396841364,8.73861443,602.03,601.14,0.3327012]
[1743396841564,4.49945137,602.02,601.15,0.28800028]
[1743396841865,0.82787878,602.01,601.16,0.33269013]
[1743396842063,7.41400838,602.01,601.17,0.28800028]
[1743396842364,7.41400838,602.0,601.18,0.33267906]
[1743396842558,4.49945137,601.99,601.19,0.28800028]
[1743396842759,0.82787878,601.98,601.2,0.33266799]
[1743396842966,3.74243579,601.98,601.21,0.28800028]
[1743396843162,1.4121433,601.97,601.21,0.28800028]
[1743396843368,0.82787878,601.97,601.21,0.28800028]
[1743396843667,2.24002208,601.97,601.21,0.28800028]
[1743396843867,4.49972093,601.97,601.21,0.28800028]
[1743396844162,1.4121433,601.96,601.22,0.33265693]
[1743396844366,2.53095012,602.14,601.23,0.28800028]
[1743396844563,1.71755511,602.13,601.24,0.33264586]
[1743396844769,1.4121433,602.12,601.24,0.33264586]
[1743396844967,1.71755544,602.11,601.25,0.28806456]
[1743396845167,1.4121433,602.1,601.26,0.3326348]
[1743396845366,1.4121433,602.09,601.27,0.28806456]
[1743396845562,2.53095012,602.08,601.28,0.33262373]
[1743396845770,1.4121433,602.07,601.29,0.28806456]
[1743396845967,4.68404679,602.08,601.3,0.33261267]
[1743396846164,1.11880682,602.06,601.31,0.28806456]
[1743396846569,4.66820687,602.06,601.31,0.28806456]
[1743396846764,3.63038878,602.05,601.32,0.28805188]
[1743396846968,3.63038878,602.05,601.31,0.28805188]
[1743396847167,1.11880682,602.04,601.32,0.28805188]
[1743396847367,6.90269131,602.04,601.31,0.28805188]
[1743396847564,5.78388449,602.03,601.31,0.28805188]
[1743396847770,5.78388449,602.02,601.31,0.28805188]
[1743396847971,8.6984415,602.01,601.31,0.28805188]
[1743396848172,2.22457096,602.0,601.31,0.28805188]
[1743396848373,0.82826758,602.0,601.31,0.28805188]
[1743396848573,3.63069993,602.0,601.31,0.28805188]
[1743396848772,2.22469063,601.99,601.31,0.28805188]
[1743396848973,6.46461212,602.15,601.31,0.28805188]
[1743396849274,6.08974101,602.14,601.31,0.28805188]
[1743396849476,6.08974101,602.13,601.31,0.28805188]
[1743396849773,9.00429802,602.12,601.31,0.28805188]
[1743396849974,5.78433199,602.11,601.31,0.28805188]
[1743396850174,3.55005511,602.1,601.31,0.28805188]
[1743396850370,1.39642305,602.09,601.31,0.28805188]
[1743396850571,1.39642305,602.08,601.31,0.28805188]
[1743396850874,1.11880682,602.08,601.31,0.28805188]
[1743396851076,1.39642305,602.07,601.31,0.28805188]
[1743396851274,1.39642305,602.06,601.31,0.28805188]
[1743396851473,1.39642305,602.05,601.31,0.28805188]
[1743396851874,3.55005511,602.05,601.31,0.28805188]
[1743396852581,1.11880682,602.04,601.31,0.28805188]
[1743396852777,3.27243888,602.04,601.31,0.28805188]
[1743396853070,1.11880682,602.03,601.31,0.28805188]
[1743396853272,6.90313881,602.03,601.31,0.28805188]
[1743396853470,6.90313881,602.02,601.31,0.28805188]
[1743396853673,5.78433199,602.01,601.31,0.28805188]
[1743396853871,5.78433199,602.0,601.31,0.28805188]
[1743396854071,3.63069993,601.99,601.31,0.28805188]
[1743396854374,0.82873097,601.99,601.31,0.28805188]
[1743396854576,2.91455701,602.0,601.32,0.3326016]
[1743396854770,1.11880682,601.98,601.33,0.28819631]
[1743396854974,1.11880682,601.98,601.34,0.33259054]
[1743396855174,1.11880682,601.98,601.35,0.28819631]
[1743396855374,8.70170924,602.13,601.36,0.33257948]
[1743396855576,5.78715223,602.12,601.37,0.28819631]
[1743396855777,2.15468089,602.11,601.38,0.33256842]
[1743396856074,4.46082163,602.11,601.39,0.28819631]
[1743396856272,4.46082163,602.1,601.4,0.33255736]
[1743396856476,0.82872342,602.09,601.41,0.28819631]
[1743396856678,3.74328043,602.09,601.42,0.3325463]
[1743396856878,1.39696085,602.08,601.42,0.3325463]
[1743396857173,2.22568427,602.08,601.42,0.3325463]
[1743396857375,5.78556369,602.18,601.42,0.3325463]
[1743396857677,2.15393254,602.17,601.42,0.3325463]
[1743396857978,6.4654504,602.17,601.42,0.3325463]
[1743396858276,5.78556369,602.16,601.42,0.3325463]
[1743396858477,0.82872342,602.15,601.42,0.3325463]
[1743396859077,3.34449109,602.16,601.42,0.3325463]
[1743396859284,1.11880682,602.15,601.42,0.3325463]
[1743396859480,3.34449109,602.15,601.42,0.3325463]
[1743396859673,2.22568427,602.15,601.42,0.3325463]
[1743396859878,2.22568427,602.18,601.42,0.3325463]
[1743396861777,2.22568427,602.18,601.43,0.28826571]
[1743396861976,2.22568427,602.18,601.44,0.33253524]
[1743396862179,2.22568427,602.18,601.45,0.28826571]
[1743396862380,2.22364327,602.18,601.46,0.33252419]
[1743396863682,2.22154562,602.18,601.46,0.33252419]
[1743396863879,2.91646875,602.18,601.46,0.33252419]
[1743396864078,5.13801437,602.18,601.46,0.33252419]
[1743396864277,2.22154562,602.17,601.46,0.33252419]
[1743396864478,2.22154562,602.18,601.46,0.33252419]
[1743396867383,1.39387108,602.18,601.46,0.33252419]
[1743396867589,0.8267787,602.18,601.46,0.33252419]
[1743396867882,2.22064978,602.18,601.46,0.33252419]
[1743396868484,1.39387108,602.18,601.47,0.28752432]
[1743396868680,0.82671876,602.18,601.48,0.33251313]
[1743396868879,2.22058984,602.18,601.49,0.28752432]
[1743396869084,2.22058984,602.18,601.5,0.33250207]
[1743396869284,2.22058984,602.18,601.51,0.28752432]
[1743396869485,2.22058984,602.18,601.51,0.62002087]
[1743396869682,2.22058984,602.18,601.51,0.33249655]
[1743396869881,2.2203358,602.18,601.51,0.33249655]
[1743396870680,2.2203358,602.18,601.52,0.28756933]
[1743396870886,1.39367471,602.18,601.52,0.28756933]
[1743396871182,0.82661463,602.18,601.52,0.28756933]
[1743396871484,1.39367471,602.18,601.52,0.28756933]
[1743396871685,2.51539346,602.19,601.52,0.28756933]
[1743396871886,1.94827484,602.19,601.52,0.28756933]
[1743396872080,1.39367471,602.19,601.52,0.28756933]
[1743396872486,3.55208639,602.37,601.53,0.33248549]
[1743396872687,3.54226788,602.36,601.53,0.33248549]
[1743396872886,8.68712792,602.35,601.54,0.28756933]
[1743396873087,3.62293573,602.34,601.55,0.33247444]
[1743396873289,2.14874551,602.33,601.56,0.28756933]
[1743396873588,6.53819705,602.32,601.57,0.33246338]
[1743396873784,2.21977759,602.31,601.57,0.33246338]
[1743396873981,3.7417019,602.3,601.57,0.33246338]
[1743396874185,2.21977759,602.29,601.57,0.33246338]
[1743396874488,1.39333701,602.29,601.57,0.33246338]
[1743396874689,1.12171875,602.28,601.57,0.33246338]
[1743396875186,2.14792757,602.42,601.57,0.33246338]
[1743396875388,3.62184045,602.41,601.57,0.33246338]
[1743396875591,5.06226341,602.4,601.57,0.33246338]
[1743396875790,5.76976802,602.39,601.57,0.33246338]
[1743396875982,0.28914582,602.44,601.57,0.33246338]
[1743396875983,8.68410386,602.38,601.57,0.33246338]
[1743396876186,5.76976802,602.37,601.57,0.33246338]
[1743396876383,5.76976802,602.36,601.57,0.33246338]
[1743396876584,4.44796644,602.35,601.57,0.33246338]
[1743396876888,4.44796644,602.34,601.57,0.33246338]
[1743396877189,0.82612599,602.33,601.57,0.33246338]
[1743396877590,2.91433584,602.33,601.57,0.33246338]
[1743396877900,2.21830137,602.32,601.57,0.33246338]
[1743396878089,0.82612599,602.31,601.57,0.33246338]
[1743396878788,1.94784474,602.31,601.57,0.33246338]
[1743396878989,1.39197835,602.3,601.57,0.33246338]
[1743396879192,1.39197835,602.29,601.57,0.33246338]
[1743396879490,1.39197835,602.28,601.57,0.33246338]
[1743396879690,3.54817742,602.44,601.57,0.33246338]
[1743396879890,3.53834448,602.43,601.57,0.33246338]
[1743396880086,8.67877131,602.42,601.57,0.33246338]
[1743396880290,5.76551236,602.41,601.57,0.33246338]
[1743396880490,8.67877131,602.4,601.57,0.33246338]
[1743396880688,2.14653782,602.39,601.57,0.33246338]
[1743396880887,3.53819305,602.39,601.57,0.33246338]
[1743396881087,5.05979677,602.38,601.57,0.33246338]
[1743396881289,4.44383188,602.37,601.57,0.33246338]
[1743396881490,0.82552828,602.36,601.57,0.33246338]
[1743396881685,4.44383188,602.36,601.57,0.33246338]
[1743396881885,0.82552828,602.35,601.57,0.33246338]
[1743396882091,4.44383188,602.35,601.58,0.28744628]
[1743396882292,2.21718351,602.34,601.58,0.33245786]
[1743396882592,2.21694209,602.33,601.58,0.33245786]
[1743396882892,0.82528686,602.32,601.58,0.33245786]
[1743396883294,1.94700561,602.32,601.58,0.33245786]
[1743396883593,1.39165523,602.31,601.58,0.33245786]
[1743396883792,1.39165523,602.31,601.59,0.28744246]
[1743396883988,1.39165523,602.3,601.59,0.28744246]
[1743396884194,2.91237601,602.54,601.59,0.28744246]
[1743396884385,5.76258299,602.53,601.59,0.28744246]
[1743396884590,0.2891314,602.46,601.59,0.28744246]
[1743396885895,6.05171439,602.46,601.58,0.33245786]
[1743396886095,5.76258299,602.45,601.58,0.33245786]
[1743396886294,5.76258299,602.44,601.58,0.33245786]
[1743396886494,5.76231498,602.43,601.58,0.33245786]
[1743396886694,5.76231498,602.42,601.59,0.28742727]
[1743396886994,8.67469099,602.41,601.6,0.3324468]
[1743396887193,5.76231498,602.4,601.6,0.3324468]
[1743396887390,4.44204006,602.39,601.6,0.3324468]
[1743396887591,2.21627499,602.38,601.6,0.3324468]
[1743396887790,2.21627499,602.37,601.6,0.3324468]
[1743396887992,1.39110317,602.36,601.6,0.3324468]
[1743396888288,2.91237601,602.37,601.6,0.3324468]
[1743396889095,0.28910618,602.59,601.6,0.3324468]
[1743396889289,1.39078354,602.7,601.6,0.3324468]
[1743396889489,2.21567526,602.69,601.6,0.3324468]
[1743396889695,5.76075569,602.68,601.6,0.3324468]
[1743396889893,5.76075569,602.67,601.6,0.3324468]
[1743396890195,0.28919507,602.59,601.6,0.3324468]
[1743396891595,6.04995076,602.59,601.6,0.3324468]
[1743396891795,5.76075569,602.58,601.6,0.3324468]
[1743396891995,5.76075569,602.57,601.6,0.3324468]
[1743396892295,5.76075569,602.56,601.6,0.3324468]
[1743396892593,5.75919616,602.55,601.6,0.3324468]
[1743396892798,5.75919616,602.54,601.6,0.3324468]
[1743396893098,8.67157217,602.53,601.6,0.3324468]
[1743396893299,5.75919616,602.52,601.6,0.3324468]
[1743396893599,5.75919616,602.51,601.6,0.3324468]
[1743396893794,5.75919616,602.5,601.6,0.3324468]
[1743396893997,5.75919616,602.49,601.6,0.3324468]
[1743396894193,2.91237601,602.51,601.6,0.3324468]
[1743396894194,5.75919616,602.48,601.6,0.3324468]
[1743396894399,5.75919616,602.47,601.6,0.3324468]
[1743396894599,4.4393694,602.46,601.6,0.3324468]
[1743396894901,4.4393694,602.45,601.6,0.3324468]
[1743396895101,0.82489172,602.44,601.6,0.3324468]
[1743396895493,3.73726773,602.44,601.6,0.3324468]
[1743396895697,2.21507544,602.43,601.6,0.3324468]
[1743396895900,0.82489172,602.42,601.6,0.3324468]
[1743396896801,3.73726773,602.42,601.6,0.3324468]
[1743396897003,2.21507544,602.41,601.6,0.3324468]
[1743396897303,0.82489172,602.4,601.6,0.3324468]
[1743396897600,1.94661047,602.4,601.6,0.3324468]
[1743396897802,1.39018372,602.39,601.6,0.3324468]
[1743396898202,1.39018372,602.38,601.6,0.3324468]
[1743396898503,1.39024638,602.37,601.6,0.3324468]
[1743396898701,2.22439422,602.44,601.6,0.3324468]
[1743396898901,2.21483539,602.43,601.6,0.3324468]
[1743396899102,2.21483539,602.42,601.6,0.3324468]
[1743396899304,2.21483539,602.41,601.6,0.3324468]
[1743396899609,2.21483539,602.4,601.61,0.28744255]
[1743396899903,2.91094257,602.41,601.62,0.33243575]
[1743396900102,1.12171875,602.39,601.63,0.28744255]
[1743396900299,1.12171875,602.39,601.64,0.3324247]
[1743396900503,3.61450762,602.69,601.64,0.3324247]
[1743396900504,2.14380626,602.68,601.65,0.28744255]
[1743396900702,0.28909417,602.59,601.66,0.33241365]
[1743396900904,0.28909417,602.59,601.67,0.28744255]
[1743396901106,0.28909417,602.59,601.68,0.3324026]
[1743396901406,2.14380626,602.64,601.68,0.3324026]
[1743396901608,6.52540669,602.63,601.68,0.3324026]
[1743396901807,5.75831388,602.62,601.68,0.3324026]
[1743396902006,5.75831388,602.61,601.68,0.3324026]
[1743396902200,5.75831388,602.6,601.69,0.28736227]
[1743396902405,5.75831388,602.59,601.7,0.33239155]
[1743396902602,5.75831388,602.58,601.71,0.28736227]
[1743396902807,5.75831388,602.57,601.71,0.28736227]
[1743396903009,5.75831388,602.56,601.71,0.28736227]
[1743396903211,5.75831388,602.55,601.71,0.6197483]
[1743396903414,5.75831388,602.54,601.72,0.28736227]
[1743396903604,5.75831388,602.53,601.72,0.28736227]
[1743396903804,5.75831388,602.52,601.72,0.28736227]
[1743396904005,2.91089907,602.53,601.72,0.28736227]
[1743396904006,5.75831388,602.51,601.72,0.28736227]
[1743396904208,8.66927835,602.5,601.72,0.28736227]
[1743396904504,7.34994756,602.49,601.71,0.33238603]
[1743396904811,4.43913378,602.48,601.71,0.33238603]
[1743396905009,0.82462616,602.47,601.71,0.33238603]
[1743396905407,2.91089907,602.47,601.71,0.33238603]
[1743396905613,5.75979189,602.46,601.71,0.33238603]
[1743396905813,6.88151064,602.45,601.71,0.33238603]
[1743396906021,4.44013799,602.44,601.71,0.33238603]
[1743396906215,0.82462616,602.43,601.71,0.33238603]
[1743396906714,3.73581343,602.43,601.71,0.33238603]
[1743396906908,4.44098688,602.42,601.71,0.33238603]
[1743396907112,0.82491436,602.41,601.71,0.33238603]
[1743396907313,2.21571148,602.41,601.71,0.33238603]
[1743396907511,2.21571148,602.4,601.71,0.33238603]
[1743396907715,2.21571148,602.39,601.71,0.33238603]
[1743396907917,1.39079712,602.39,601.71,0.33238603]
[1743396908111,1.12171875,602.38,601.71,0.33238603]
[1743396908310,1.9468412,602.38,601.71,0.33238603]
[1743396908514,0.99091443,602.59,601.71,0.33238603]
[1743396908515,2.21591957,602.37,601.71,0.33238603]
[1743396908716,2.21597915,602.36,601.71,0.33238603]
[1743396909014,2.21597915,602.35,601.71,0.33238603]
[1743396909215,2.21612406,602.34,601.71,0.33238603]
[1743396909412,1.39079712,602.34,601.71,0.33238603]
[1743396909615,1.39079712,602.33,601.71,0.33238603]
[1743396909916,1.39079712,602.32,601.71,0.33238603]
[1743396910117,1.39079712,602.31,601.71,0.33238603]
[1743396910311,3.54704005,602.46,601.71,0.33238603]
[1743396910515,3.53801902,602.45,601.71,0.33238603]
[1743396910818,5.76447641,602.44,601.71,0.33238603]
[1743396911116,8.67716787,602.43,601.71,0.33238603]
[1743396911318,5.76447641,602.42,601.71,0.33238603]
[1743396911511,0.2892107,602.4,601.71,0.33238603]
[1743396911715,6.05368711,602.4,601.71,0.33238603]
[1743396911910,8.67716787,602.39,601.71,0.33238603]
[1743396912111,5.76447641,602.38,601.71,0.33238603]
[1743396912312,3.61832924,602.37,601.71,0.33238603]
[1743396912517,5.76637247,602.36,601.71,0.33238603]
[1743396912718,5.76637247,602.35,601.71,0.33238603]
[1743396913018,5.76638003,602.34,601.71,0.33238603]
[1743396913216,5.76638003,602.33,601.71,0.33238603]
[1743396913417,5.76638003,602.32,601.71,0.33238603]
[1743396913719,5.76638003,602.31,601.71,0.33238603]
[1743396913913,5.76638003,602.3,600.83,2.53489445]
[1743396914115,5.76638003,602.29,600.85,0.33286177]
[1743396914316,1.12171875,602.19,600.86,0.28780008]
[1743396914518,1.12171875,602.19,600.88,0.33284516]
[1743396914719,1.12171875,602.19,600.89,0.28780008]
[1743396914919,1.12171875,602.19,600.91,0.33282854]
[1743396915117,1.12171875,602.19,600.92,0.28780008]
[1743396915320,1.12171875,602.18,600.94,0.33281192]
[1743396915621,1.12171875,602.18,600.95,0.28779551]
[1743396915817,1.12171875,602.17,600.97,0.33279531]
[1743396916019,1.12171875,602.17,600.98,0.28779551]
[1743396916221,1.12171875,602.17,601.0,0.3327787]
[1743396916526,5.76709651,602.18,601.01,0.28779551]
[1743396916721,2.14876727,602.17,601.03,0.33276209]
[1743396917025,5.76709651,602.17,601.04,0.28779551]
[1743396917226,2.14876727,602.16,601.06,0.33274548]
[1743396917425,5.76709651,602.16,601.07,0.28779551]
[1743396917626,2.14876727,602.15,601.09,0.33272887]
[1743396917827,5.76709651,602.15,601.1,0.28779551]
[1743396918027,2.14876727,602.14,601.12,0.33271227]
[1743396918226,2.34244895,602.14,601.13,0.28779551]
[1743396918529,7.96933058,602.14,601.13,0.28779551]
[1743396918829,5.76709651,602.13,601.13,0.28779551]
[1743396919028,2.14876727,602.12,601.13,0.28779551]
[1743396919227,5.76709651,602.12,601.14,0.3327012]